Workbook

Sheet NSU
B1: Roosa Aho | E1: 25.10.1995 Kauhava
B2: SUPERPESIS | E2: Runkosarja | I2: Kärkilyönnit (KL), pesänvälit | P2: Ylempi loppusarja | U2: Alempi loppusarja | AB2: Arvo-ottelut ja mitalit
B3: Vuosi | C3: Sija | D3: Seura | E3: OTT | F3: KUN | G3: LÖI | H3: TOI | I3: KL | J3: 0 > 1 | K3: 1 > 2 | L3: 2 > 3 | M3: 3 > k | N3: KL-% | P3: OTT | Q3: KUN | R3: LÖI | S3: TOI | T3: KL | U3: OTT | V3: KUN | W3: LÖI | X3: TOI | Y3: KL | Z3: IL | AA3: LL | AB3: Halli | AC3: K | AD3: H | AE3: P
B4: 2012 | C4: 6. | D4: Kirittäret 3 | F4: suomensarja
B5: 2013 | C5: 7. | D5: Kirittäret 3 | F5: suomensarja
B6: 2014 | C6: 9. | D6: Kirittäret 2 | F6: ykköspesis
B7: 2015 | C7: 6. | D7: LaVe | F7: ykköspesis
B8: 2016 | C8: 2. | D8: LaVe | F8: ykköspesis
B9: 2017 | C9: 11. | D9: LaVe | E9: 25 | F9: 0 | G9: 5 | H9: 3 | I9: 43 | J9: 14 | K9: 16 | L9: 8 | M9: 5 | N9: 36.1 % | O9: 119
B10: 2018 | C10: 11. | D10: LaVe | E10: 26 | F10: 2 | G10: 14 | H10: 10 | I10: 88 | J10: 15 | K10: 25 | L10: 32 | M10: 16 | N10: 52.4 % | O10: 168
B11: 2019 | C11: 7. | D11: NJ | F11: ykköspesis
B12: 2019 | C12: 5. | D12: SMJ | E12: 8 | F12: 0 | G12: 2 | H12: 4 | I12: 15 | J12: 2 | K12: 5 | L12: 6 | M12: 2 | N12: 42.9 % | O12: 35
B13: 2020
B14: 2021 | C14: 4. | D14: Jalas | F14: ykköspesis
B15: 2022 | C15: 3. | D15: AA | F15: suomensarja
B16: 2023 | C16: 2. | D16: AA | F16: suomensarja
B17: Yhteensä | E17: =SUM(E4:E16) -> 59 | F17: 2 | G17: 21 | H17: 17 | I17: 146 | J17: 31 | K17: 46 | L17: 46 | M17: 23 | N17: =PRODUCT(I17/O17) -> 45.3 % | O17: =SUM(O4:O16) -> 322 | P17: =SUM(P4:P5) -> 0 | Q17: 0 | R17: 0 | S17: 0 | T17: 0 | U17: 0 | V17: 0 | W17: 0 | X17: 0 | Y17: 0 | Z17: 0 | AA17: 0 | AB17: 0 | AC17: 0 | AD17: 0 | AE17: 0
B18: Pesispörssi | D18: =SUM(F17:H17)+((I17-F17-G17)/3)+(E17/3)+(Z17*25)+(AA17*25)+(AB17*10)+(AC17*25)+(AD17*20)+(AE17*15) -> 100.7
B20: URA SUPERISSA | E20: OTT | F20: KUN | G20: LÖI | H20: TOI | I20: KL | K20: ka/L | L20: ka/T | M20: ka/KL | N20: K - % | P20: ENSIMMÄISET
B21: Runkosarja | E21: =PRODUCT(E17) -> 59 | F21: =PRODUCT(F17) -> 2 | G21: =PRODUCT(G17) -> 21 | H21: =PRODUCT(H17) -> 17 | I21: =PRODUCT(I17) -> 146 | K21: =PRODUCT((F21+G21)/E21) -> 0.39 | L21: =PRODUCT(H21/E21) -> 0.29 | M21: =PRODUCT(I21/E21) -> 2.47 | N21: =PRODUCT(N17) -> 45.3 % | O21: =PRODUCT(O17) -> 322 | P21: Ottelu | R21: 09.05. 2017 Pesäkarhut - LaVe 2-0 (4-2, 15-1) | AA21: 1. ottelu | AD21: 21 v 6 kk 14 pv
B22: Ylempi loppusarja | P22: Lyöty | R22: 18.06. 2017 Pesä Ysit - LaVe 0-1 (3-5, 2-2) | AA22: 12. ottelu | AD22: 21 v 7 kk 24 pv
B23: Alempi loppusarja | P23: Tuotu | R23: 31.05. 2017 Manse PP - LaVe 2-0 (4-1, 7-1) | AA23: 6. ottelu | AD23: 21 v 7 kk 6 pv
B24: KAIKKI | E24: =SUM(E21:E23) -> 59 | F24: =SUM(F21:F23) -> 2 | G24: =SUM(G21:G23) -> 21 | H24: =SUM(H21:H23) -> 17 | I24: =SUM(I21:I23) -> 146 | K24: =PRODUCT((F24+G24)/E24) -> 0.39 | L24: =PRODUCT(H24/E24) -> 0.29 | M24: =PRODUCT(I24/E24) -> 2.47 | N24: =PRODUCT(I24/O24) -> 45.3 % | O24: =SUM(O21:O23) -> 322 | P24: Kunnari | R24: 22.07. 2018 SMJ - LaVe 2-0 (7-4, 4-0) | AA24: 45. ottelu | AD24: 22 v 8 kk 27 pv
B26: Seurat | D26: AA = Alajärven Ankkurit (1944), kasvattajaseura
D27: Kirittäret = Jyväskylän Kirittäret (2004)
D28: LaVe = Lappajärven Veikot (1911)
D29: SMJ = Seinäjoen Maila-Jussit (1932)
D30: NJ = Nurmon Jymy (1925)
D31: Jalas = Jalasjärven Jalas (1914)

Sheet NYP,NSS
B1: Roosa Aho | E1: 25.10.1995 Kauhava
B2: YKKÖSPESIS | E2: Runkosarja | L2: Runkosarja TOP-10 | Q2: Jatkosarjat | X2: SUOMENSARJA | AA2: Runkosarja | AH2: Runkosarja TOP-10 | AM2: Jatkosarjat
B3: Vuosi | C3: Sija | D3: Seura | E3: OTT | F3: KUN | G3: LÖI | H3: TOI | I3: KL | J3: KL-% | L3: LÖI | M3: TOI | N3: L+T | O3: KL | Q3: OTT | R3: KUN | S3: LÖI | T3: TOI | U3: KL | V3: KL-% | X3: Vuosi | Y3: Sija | Z3: Seura | AA3: OTT | AB3: KUN | AC3: LÖI | AD3: TOI | AE3: KL | AF3: KL-% | AH3: LÖI | AI3: TOI | AJ3: L+T | AK3: KL | AM3: OTT | AN3: KUN | AO3: LÖI | AP3: TOI | AQ3: KL | AR3: KL-%
X4: 2012 | Y4: 6. | Z4: Kirittäret 3
X5: 2013 | Y5: 7. | Z5: Kirittäret 3
B6: 2014 | C6: 9. | D6: Kirittäret 2 | E6: 16 | F6: 0 | G6: 6 | H6: 3 | I6: 41 | J6: 38.7 % | K6: 106
B7: 2015 | C7: 6. | D7: LaVe | E7: 22 | F7: 0 | G7: 12 | H7: 7 | I7: 70 | J7: 52.2 % | K7: 134
B8: 2016 | C8: 2. | D8: LaVe | E8: 18 | F8: 1 | G8: 15 | H8: 9 | I8: 53 | J8: 53.5 % | K8: 99 | Q8: 4 | R8: 0 | S8: 3 | T8: 3 | U8: 7 | V8: 33.3 % | W8: 21
B10: 2019 | C10: 7. | D10: NJ | E10: 10 | F10: 1 | G10: 6 | H10: 11 | I10: 28 | J10: 43.8 % | K10: 64
B12: 2021 | C12: 4. | D12: Jalas | E12: 16 | F12: 1 | G12: 34 | H12: 8 | I12: 82 | J12: 60.7 % | K12: 135 | L12: 5. | N12: 10. | O12: 8. | Q12: 3 | R12: 0 | S12: 5 | T12: 1 | U12: 14 | V12: 58.3 % | W12: 24
B13: YHTEENSÄ | E13: =SUM(E4:E12) -> 82 | F13: =SUM(F4:F12) -> 3 | G13: =SUM(G4:G12) -> 73 | H13: =SUM(H4:H12) -> 38 | I13: =SUM(I4:I12) -> 274 | J13: =PRODUCT(I13/K13) -> 50.9 % | K13: =SUM(K4:K12) -> 538.0016464 | Q13: =SUM(Q4:Q12) -> 7 | R13: =SUM(R4:R12) -> 0 | S13: =SUM(S4:S12) -> 8 | T13: =SUM(T4:T12) -> 4 | U13: =SUM(U4:U12) -> 21 | V13: =PRODUCT(U13/W13) -> 46.7 % | W13: =SUM(W4:W12) -> 45 | X13: YHTEENSÄ | AA13: =SUM(AA4:AA12) -> 0 | AB13: =SUM(AB4:AB12) -> 0 | AC13: =SUM(AC4:AC12) -> 0 | AD13: =SUM(AD4:AD12) -> 0 | AE13: =SUM(AE4:AE12) -> 0 | AF13: 0.0 % | AG13: =SUM(AG4:AG12) -> 0 | AM13: =SUM(AM4:AM12) -> 0 | AN13: =SUM(AN4:AN12) -> 0 | AO13: =SUM(AO4:AO12) -> 0 | AP13: =SUM(AP4:AP12) -> 0 | AQ13: =SUM(AQ4:AQ12) -> 0 | AR13: 0.0 % | AS13: =SUM(AS4:AS12) -> 0
B15: KAIKKI OTTELUT | E15: OTT | F15: KUN | G15: LÖI | H15: TOI | I15: KL | J15: KL-% | L15: ka/L | M15: ka/T | N15: ka/l+t | O15: ka/kl | R15: Seurat | T15: AA = Alajärven Ankkurit (1944), kasvattajaseura
B16: SUPERPESIS | E16: 59 | F16: 2 | G16: 21 | H16: 17 | I16: 146 | J16: 45.3 % | K16: =PRODUCT(I16/J16) -> 322.2958057 | L16: =PRODUCT((F16+G16)/E16) -> 0.39 | M16: =PRODUCT(H16/E16) -> 0.29 | N16: =PRODUCT((F16+G16+H16)/E16) -> 0.68 | O16: =PRODUCT(I16/E16) -> 2.47 | T16: Kirittäret = Jyväskylän Kirittäret (2004)
B17: YKKÖSPESIS | E17: =PRODUCT(E13+Q13) -> 89 | F17: =PRODUCT(F13+R13) -> 3 | G17: =PRODUCT(G13+S13) -> 81 | H17: =PRODUCT(H13+T13) -> 42 | I17: =PRODUCT(I13+U13) -> 295 | J17: =PRODUCT(I17/K17) -> 50.6 % | K17: =PRODUCT(K13+W13) -> 583.0016464 | L17: =PRODUCT((F17+G17)/E17) -> 0.94 | M17: =PRODUCT(H17/E17) -> 0.47 | N17: =PRODUCT((F17+G17+H17)/E17) -> 1.42 | O17: =PRODUCT(I17/E17) -> 3.31 | T17: LaVe = Lappajärven Veikot (1911)
B18: SUOMENSARJA | E18: =PRODUCT(AA13+AM13) -> 0 | F18: =PRODUCT(AB13+AN13) -> 0 | G18: =PRODUCT(AC13+AO13) -> 0 | H18: =PRODUCT(AD13+AP13) -> 0 | I18: =PRODUCT(AE13+AQ13) -> 0 | J18: 0.0 % | K18: =PRODUCT(AG13+AS13) -> 0 | L18: 0.00 | M18: 0.00 | N18: 0.00 | O18: 0.00 | T18: NJ = Nurmon Jymy (1925)
B19: YHTEENSÄ | E19: =SUM(E16:E18) -> 148 | F19: =SUM(F16:F18) -> 5 | G19: 102 | H19: 59 | I19: 441 | J19: =PRODUCT(I19/K19) -> 48.7 % | K19: =SUM(K16:K18) -> 905.2974521 | L19: =PRODUCT((F19+G19)/E19) -> 0.72 | M19: =PRODUCT(H19/E19) -> 0.40 | N19: =PRODUCT((F19+G19+H19)/E19) -> 1.12 | O19: =PRODUCT(I19/E19) -> 2.98 | T19: Jalas = Jalasjärven Jalas (1914)
